bitfinex/quotes_ETHUSD_20241122
["timestamp","ask_amount","ask_price","bid_price","bid_amount"]
[1732245571403,0.55,3350.5,3349.7,0.8304]
[1732245571546,3.53463,3350.5,3349.7,0.8404]
[1732245571896,2.98489,3350.2,3349.7,0.8304]
[1732245572209,2.98428,3350.9,3350.1,0.01]
[1732245572368,0.7565,3351.2,3350.3,0.01]
[1732245572692,2.98455,3350.6,3350.3,0.01]
[1732245572860,2.9848,3350.4,3349.7,0.8404]
[1732245573048,2.98436,3350.8,3349.8,0.01]
[1732245573250,0.7565,3351.2,3350.1,0.01]
[1732245573251,3.74052,3351.2,3350.1,0.01]
[1732245573477,2.984,3351.2,3350.6,0.8304]
[1732245573672,0.7565,3351.6,3350.9,0.01]
[1732245574001,0.7565,3351.6,3350.6,0.8304]
[1732245574002,2.98313,3352.2,3351.2,0.01]
[1732245574163,5.68091508,3352.4,3351.3,0.8304]
[1732245574164,0.7565,3352.4,3351.3,0.8304]
[1732245574353,2.98327,3352.1,3351.3,0.8404]
[1732245574847,2.98327,3352.1,3351.5,0.01]
[1732245575196,2.98329,3352.0,3351.5,0.01]
[1732245575651,2.98347,3351.9,3351.5,0.01]
[1732245575856,0.55,3351.8,3350.9,0.8304]
[1732245576051,2.9837,3351.6,3351.1,0.01]
[1732245576352,0.55,3351.8,3351.1,0.01]
[1732245576353,3.53349,3351.8,3351.1,0.01]
[1732245576579,0.55,3351.8,3351.1,0.01]
[1732245576785,2.98375,3351.5,3351.1,0.01]
[1732245577083,0.55,3351.8,3351.2,2.9838]
[1732245577084,2.98384,3351.4,3351.2,2.9838]
[1732245577290,2.98366,3351.6,3351.2,2.9838]
[1732245577491,2.98363,3351.7,3351.2,2.9838]
[1732245577675,0.55,3352.1,3351.2,2.9838]
[1732245577676,2.98339,3351.9,3351.2,2.9838]
[1732245577983,2.98367,3351.6,3351.2,2.9838]
[1732245578189,2.9835,3351.8,3351.2,2.9838]
[1732245578498,3.53322,3352.1,3351.2,2.9838]
[1732245578661,2.98329,3352.0,3351.2,2.9838]
[1732245579002,2.98354,3351.8,3351.2,2.9838]
[1732245579160,3.53322,3352.1,3351.2,3.0038]
[1732245579492,3.53322,3352.1,3351.2,2.9938]
[1732245579493,2.98338,3351.9,3351.2,2.9938]
[1732245579797,2.98349,3351.8,3351.2,2.9938]
[1732245580103,3.53327,3352.1,3351.2,3.0038]
[1732245580264,2.98335,3352.0,3351.4,0.01]
[1732245580462,2.98348,3351.8,3351.5,2.9837]
[1732245581075,2.98364,3351.6,3351.5,2.9837]
[1732245581775,3.53364,3351.6,3351.5,2.9837]
[1732245583815,2.98348,3351.8,3351.5,2.9837]
[1732245584017,2.98335,3352.0,3351.6,0.29837]
[1732245584310,2.98335,3352.0,3351.7,0.299]
[1732245584311,2.98347,3351.8,3351.7,0.299]
[1732245585787,3.53347,3351.8,3351.7,0.299]
[1732245586107,3.53364,3351.6,3351.5,2.9837]
[1732245586274,3.53364,3351.6,3351.5,2.4436981]
[1732245586275,4.33874,3351.6,3351.5,2.4436981]
[1732245586512,4.33874,3351.6,3351.5,2.26392394]
[1732245587501,4.33874,3351.6,3351.5,2.07781753]
[1732245588314,4.33874,3351.6,3350.5,0.8135]
[1732245588315,2.98414,3351.1,3350.5,0.8135]
[1732245588546,2.98414,3351.1,3350.5,0.8035]
[1732245588547,2.98443,3350.8,3350.5,0.8035]
[1732245588746,2.98452,3350.7,3350.2,0.8135]
[1732245588905,2.98469,3350.5,3350.3,0.299]
[1732245589104,4.92172418,3351.2,3350.3,0.299]
[1732245589105,2.98444,3350.8,3350.3,0.299]
[1732245589299,4.92172418,3351.2,3350.3,0.299]
[1732245589300,2.98435,3350.9,3350.3,0.299]
[1732245589514,3.0,3351.0,3350.3,0.299]
[1732245589749,2.98443,3350.8,3350.3,0.299]
[1732245590514,6.53421,3351.0,3350.3,0.299]
[1732245590824,3.0,3350.8,3350.3,0.299]
[1732245591027,3.55,3351.0,3350.3,0.299]
[1732245591228,0.8051,3350.7,3349.9,0.309]
[1732245591528,0.55,3350.5,3350.0,0.01]
[1732245591911,0.55,3350.6,3350.0,0.01]
[1732245592551,0.8051,3351.1,3350.0,0.01]
[1732245592552,3.35626715,3351.2,3350.7,0.299]
[1732245592761,0.35626715,3351.2,3350.7,0.309]
[1732245592924,0.35626715,3351.2,3351.1,0.01]
[1732245593126,7.90481418,3352.3,3351.4,1.1025]
[1732245593330,2.98313,3352.2,3351.4,1.1025]
[1732245593637,0.8051,3352.4,3351.7,0.02]
[1732245593867,7.90438418,3352.8,3351.9,0.01]
[1732245594164,5.2777793,3352.8,3352.1,0.01]
[1732245594613,5.2777793,3352.8,3351.9,0.01]
[1732245594614,2.98282,3352.6,3351.9,0.01]
[1732245594813,2.98287,3352.5,3352.0,0.01]
[1732245595322,2.98287,3352.5,3351.6,0.01]
[1732245595926,5.2777793,3352.8,3352.0,0.01]
[1732245596260,0.35605512,3352.8,3352.4,0.01]
[1732245596549,2.98225,3353.2,3352.4,0.01]
[1732245596761,2.98206,3353.4,3352.4,0.01]
[1732245596957,2.98201,3353.5,3352.4,0.01]
[1732245597112,2.98215,3353.3,3352.4,0.01]
[1732245597617,0.35380524,3353.7,3353.4,0.8135]
[1732245597819,1.44658961,3354.1,3353.4,0.8135]
[1732245598013,1.80767159,3354.1,3353.9,0.01]
[1732245598219,1.80767159,3354.1,3353.5,0.01]
[1732245598452,1.80767159,3354.1,3353.4,0.8035]
[1732245598628,1.80767159,3354.1,3353.4,0.58907168]
[1732245599357,1.80767159,3354.1,3352.1,0.38696625]
[1732245599358,0.8051,3353.1,3350.2,0.02981997]
[1732245599570,4.51992433,3352.4,3350.3,0.2186312]
[1732245599728,4.51992433,3352.4,3350.4,0.24846487]
[1732245599921,2.98208,3353.4,3350.4,0.24846487]
[1732245599922,0.8051,3353.6,3350.5,0.2186312]
[1732245600265,7.50199433,3353.4,3350.6,0.83580213]
[1732245600552,5.98186,3353.7,3350.9,0.01]
[1732245600764,3.0,3353.5,3351.0,2.9400435]
[1732245600920,2.98194,3353.6,3351.0,0.53500211]
[1732245601116,3.0,3353.7,3351.1,0.2284156]
[1732245601324,7.50204433,3353.4,3351.2,0.75341773]
[1732245601544,7.50204433,3353.4,3351.3,0.2184156]
[1732245601545,2.98222,3353.2,3351.3,0.2184156]
[1732245601727,3.53233,3353.1,3351.4,0.48769106]
[1732245602028,0.55,3353.1,3351.5,3.41184644]
[1732245602231,2.98242,3353.0,3351.7,0.0913]
[1732245602457,3.53232,3353.1,3351.8,0.45786147]
[1732245602642,3.53232,3353.1,3351.8,0.88660791]
[1732245602964,3.55,3353.2,3351.9,2.9834]
[1732245603252,3.53251,3352.9,3351.9,3.42150908]
[1732245603452,2.98267,3352.7,3351.9,2.9834]
[1732245603645,3.53251,3352.9,3351.9,2.9834]
[1732245603846,2.98261,3352.8,3351.9,2.9834]
[1732245604017,3.53252,3352.9,3351.9,2.9834]
[1732245604220,2.98278,3352.6,3351.9,2.9834]
[1732245604423,5.96561,3352.6,3351.9,2.9834]
[1732245604625,2.98258,3352.8,3351.9,2.9834]
[1732245604831,2.98269,3352.7,3351.9,2.9834]
[1732245605242,0.55,3352.6,3351.9,2.9834]
[1732245605471,0.55,3352.6,3351.9,3.29087]
[1732245606279,2.98295,3352.4,3351.9,3.29087]
[1732245606572,2.98311,3352.2,3351.9,2.9834]
[1732245606787,4.51992433,3353.1,3351.9,2.9834]
[1732245606788,3.53329,3352.0,3351.9,2.9834]
[1732245607234,6.53329,3352.0,3351.9,2.9834]
[1732245608232,0.8037,3351.9,3350.9,0.0913]
[1732245608477,2.98418,3351.0,3349.0,0.0913]
[1732245608778,2.9843,3350.9,3349.9,0.0913]
[1732245609238,2.98409,3351.1,3349.9,0.0913]
[1732245609239,2.98439,3350.8,3349.9,0.0913]
[1732245609442,2.98444,3350.8,3349.9,0.0913]
[1732245609676,3.53446,3350.7,3349.9,0.54916147]
[1732245609837,2.98401,3351.2,3350.1,0.0913]
[1732245610043,2.98363,3351.7,3350.3,0.0913]
[1732245610238,2.98341,3351.9,3350.4,0.02984156]
[1732245610239,3.3288774,3351.9,3350.4,0.02984156]
[1732245610439,2.98348,3351.8,3350.5,0.0913]
[1732245610691,2.98358,3351.7,3350.6,0.02984018]
[1732245610840,2.98374,3351.5,3350.6,0.02984018]
[1732245611037,2.98356,3351.7,3350.5,0.0913]
[1732245611845,2.9832,3352.1,3350.5,0.0913]
[1732245612039,2.98287,3352.5,3350.7,0.0913]
[1732245612241,2.9827,3352.7,3350.9,0.0913]
[1732245612470,0.35129464,3352.7,3351.1,0.0913]
[1732245612669,2.9824,3353.0,3351.3,0.0913]
[1732245612670,2.98258,3352.8,3351.3,0.0913]
[1732245612884,2.98267,3352.7,3351.5,0.0913]
[1732245613173,2.98279,3352.6,3351.5,0.0913]
[1732245613539,2.98289,3352.5,3351.6,2.9832]
[1732245614345,2.98289,3352.5,3351.6,3.29065]
[1732245614549,2.98267,3352.7,3351.6,3.29065]
[1732245614753,3.53278,3352.6,3351.6,3.29065]
[1732245614968,2.98301,3352.4,3351.6,2.9832]
[1732245615152,2.9831,3352.3,3351.6,2.9832]
[1732245615336,2.98284,3352.5,3351.6,2.9832]
[1732245615937,0.55,3352.6,3351.6,2.9832]
[1732245616275,2.98337,3352.0,3351.6,2.9832]
[1732245616517,2.9835,3351.8,3351.6,2.9832]
[1732245616964,2.98356,3351.7,3351.6,2.9832]
[1732245617159,2.98329,3352.0,3351.6,2.9832]
[1732245617388,0.55,3352.1,3351.6,2.9832]
[1732245617389,5.96684,3351.9,3351.6,2.9832]
[1732245617684,2.98321,3352.1,3351.6,2.9832]
[1732245617868,0.55,3352.0,3351.6,2.9832]
[1732245618055,3.0,3352.1,3351.6,2.9832]
[1732245618261,0.35018941,3352.5,3351.7,0.0913]
[1732245618493,5.3986821,3353.4,3351.7,0.54916147]
[1732245618667,2.98276,3352.6,3351.7,0.0913]
[1732245618873,2.98302,3352.4,3351.7,0.0913]
[1732245619071,4.5258821,3352.6,3351.0,0.45786147]
[1732245619289,4.5258821,3352.2,3349.7,0.02983751]
[1732245619505,4.5258821,3352.2,3351.1,2.9835]
[1732245619713,2.98363,3351.7,3351.1,2.9835]
[1732245619865,2.98385,3351.4,3351.2,0.299]
[1732245620062,2.98385,3351.4,3351.1,2.38491473]
[1732245620465,2.98385,3351.4,3351.1,1.89621621]
[1732245620701,2.984,3351.2,3351.1,1.89621621]
[1732245620999,3.0,3351.6,3351.1,1.50933758]
[1732245621000,3.55,3351.3,3351.1,1.50933758]
[1732245621204,0.35894754,3351.6,3351.1,1.50933758]
[1732245621386,3.0,3351.8,3351.1,1.18099776]
[1732245621695,3.0,3351.8,3351.1,1.030064]
[1732245621899,2.98349,3351.8,3351.1,1.030064]
[1732245622084,0.3610671,3351.8,3351.1,0.70619326]
[1732245622290,2.98366,3351.6,3351.1,0.70619326]
[1732245622493,2.98385,3351.4,3351.1,0.70619326]
[1732245622811,2.98393,3351.3,3351.1,0.15608862]
[1732245623185,3.0,3351.5,3351.1,0.15608862]
[1732245623504,5.98337,3352.0,3351.1,0.15608862]
[1732245623713,3.0,3352.0,3351.2,0.299]
[1732245623875,3.0,3352.0,3351.1,0.15608862]
[1732245623876,5.98349,3351.8,3351.1,0.15608862]
[1732245624114,5.98349,3351.8,3351.0,0.299]
[1732245624115,0.55,3351.9,3351.3,5.8113]
[1732245624408,0.55,3351.9,3350.0,0.45786147]
[1732245624409,0.55,3351.9,3350.1,0.02983934]
[1732245624626,2.98363,3351.7,3350.1,0.02983934]
[1732245624829,0.55,3351.9,3349.6,0.48770245]
[1732245625027,0.55,3351.9,3350.2,0.299]
[1732245625239,0.55,3351.9,3350.4,0.299]
[1732245625431,3.55,3351.9,3350.5,0.02984101]
[1732245625759,6.5334,3351.9,3350.6,0.299]
[1732245625928,2.98348,3351.8,3350.7,0.02984101]
[1732245626128,0.90212962,3351.9,3350.7,3.64766921]
[1732245626329,0.90212962,3351.9,3350.7,3.31334101]
[1732245626534,3.88552962,3351.9,3350.7,3.31334101]
[1732245626736,2.98349,3351.8,3350.7,3.31334101]
[1732245627062,2.98349,3351.8,3350.7,2.9845]
[1732245627063,2.98391,3351.4,3350.7,2.9845]
[1732245627203,2.98391,3351.4,3350.7,2.73486325]
[1732245627407,0.55,3351.5,3350.7,2.73486325]
[1732245627927,2.98356,3351.7,3350.7,2.73486325]
[1732245628149,3.53366,3351.6,3350.7,2.73486325]
[1732245628348,2.98383,3351.4,3350.7,2.73486325]
[1732245628651,0.55,3351.6,3350.8,0.0455]
[1732245629055,4.47904401,3351.8,3350.8,0.3445]
[1732245629358,1.83956692,3351.9,3351.0,0.0455]
[1732245629661,1.49402969,3352.7,3351.2,0.0455]
[1732245629814,2.98264,3352.8,3351.4,0.0455]
[1732245629815,1.41315759,3352.8,3351.4,0.0455]
[1732245630016,1.41315759,3352.8,3351.5,3.4888]
[1732245630247,1.48972816,3352.9,3351.5,3.07124812]
[1732245630446,4.41694372,3352.4,3351.5,3.07124812]
[1732245630653,0.55,3352.1,3351.5,3.07124812]
[1732245630950,0.55,3352.3,3351.5,3.07124812]
[1732245631154,0.55,3352.1,3350.4,0.26916554]
[1732245631506,2.98365,3351.6,3350.4,0.23933036]
[1732245631620,0.55,3351.7,3350.4,0.23933036]
[1732245631820,0.55,3351.7,3350.4,0.69719183]
[1732245632151,0.55,3351.7,3350.6,0.23933036]
[1732245632350,0.55,3351.7,3350.8,0.23933036]
[1732245632559,0.55,3351.7,3351.0,0.23933036]
[1732245632723,0.55,3351.9,3350.9,2.9843]
[1732245632925,0.55,3351.6,3350.9,2.9843]
[1732245633120,0.55,3351.6,3350.9,2.67035123]
[1732245633419,0.36198532,3352.3,3351.0,0.785304]
[1732245633737,0.818,3353.0,3351.0,0.785304]
[1732245633938,4.52624607,3352.9,3351.2,0.2976]
[1732245634139,0.818,3353.0,3351.4,0.2976]
[1732245634314,2.98264,3352.8,3351.5,0.02983286]
[1732245634520,1.17516187,3353.0,3351.5,0.02983286]
[1732245634521,2.9825,3352.9,3351.6,0.2976]
[1732245634755,2.98258,3352.8,3351.6,0.2976]
[1732245634952,2.98258,3352.8,3351.7,3.5951]
[1732245635669,3.0,3352.7,3351.7,3.5951]
[1732245635834,3.55,3352.4,3351.7,3.5951]
[1732245636631,3.0,3352.3,3351.7,3.5951]
[1732245636835,0.55,3352.4,3351.7,3.5951]
[1732245637159,3.55,3351.8,3351.7,3.2975]
[1732245637356,0.55,3351.8,3351.7,3.2975]
[1732245637769,0.55,3352.1,3351.7,3.2975]
[1732245637943,6.53347,3351.8,3351.7,3.2975]
[1732245638142,6.53347,3351.8,3351.7,2.78965495]
[1732245638962,2.98366,3351.6,3350.0,0.02983895]
[1732245639141,0.55,3351.4,3350.0,0.32743895]
[1732245639341,0.55,3351.6,3350.2,0.2976]
[1732245639554,0.55,3351.4,3350.3,0.02984451]
[1732245640170,2.98349,3351.8,3350.3,0.02984451]
[1732245640171,3.0,3351.7,3350.3,0.02984451]
[1732245640333,3.55,3351.6,3350.3,0.02984451]
[1732245640535,3.55,3351.6,3350.0,0.02984246]
[1732245640770,3.0,3351.4,3350.0,0.02984246]
[1732245640979,0.55,3351.6,3350.2,0.2976]
[1732245640980,3.55,3351.6,3350.2,0.2976]
[1732245641137,0.55,3351.6,3350.4,0.2976]
[1732245641480,3.0,3351.7,3350.5,0.02984432]
[1732245641671,2.98352,3351.8,3350.6,0.67461058]
[1732245641874,3.0,3351.5,3350.6,0.2976]
[1732245642092,3.0,3351.7,3350.6,0.2976]
[1732245642433,5.98356,3351.7,3350.6,0.2976]
[1732245642792,3.0,3351.4,3350.4,0.2976]
[1732245642996,3.0,3351.3,3350.3,2.9848]
[1732245643154,5.98395,3351.3,3350.3,2.9848]
[1732245643661,2.98412,3351.1,3350.3,2.9848]
[1732245643972,5.98373,3351.5,3350.3,2.9848]
[1732245644157,3.0,3350.9,3350.4,0.2976]
[1732245644587,3.0,3350.7,3350.4,0.2976]
[1732245644971,2.98462,3350.5,3350.4,0.2976]
[1732245645173,5.98462,3350.5,3350.4,0.2976]
[1732245645401,6.53462,3350.5,3350.4,0.2976]
[1732245646190,2.98471,3350.4,3350.3,2.9848]
[1732245646392,3.55,3350.5,3350.3,2.9848]
[1732245646598,2.98471,3350.4,3350.3,2.9848]
[1732245647260,0.55,3350.5,3350.3,2.9848]
[1732245647891,2.98471,3350.4,3350.3,2.9848]
[1732245648097,4.34611,3350.4,3350.3,2.9848]
[1732245648463,4.34611,3350.4,3350.3,2.71358559]
[1732245648464,7.34611,3350.4,3350.3,2.71358559]
[1732245648801,7.34611,3350.4,3350.3,2.49315327]
[1732245649164,7.34611,3350.4,3350.3,2.29200647]
[1732245649496,7.34611,3350.4,3350.3,1.95544247]
[1732245650463,0.35690771,3350.5,3350.3,1.72965657]
[1732245650772,0.55,3350.7,3350.3,1.72965657]
[1732245651174,3.0,3350.6,3350.3,1.72965657]
[1732245651382,3.55,3350.5,3350.3,1.72965657]
[1732245651566,3.53466,3350.5,3350.3,1.72965657]
[1732245651872,0.55,3350.6,3350.3,1.72965657]
[1732245652601,3.53454,3350.6,3350.3,1.72965657]
[1732245652804,0.55,3350.4,3350.3,0.27618985]
[1732245652974,3.53471,3350.4,3350.3,2.6e-07]
[1732245653299,6.53471,3350.4,3350.3,2.6e-07]
[1732245653701,6.53471,3350.4,3348.8,0.2976]
[1732245653702,0.55,3350.2,3348.8,0.2976]
[1732245653868,1.16008422,3350.8,3348.7,0.2976]
[1732245654086,0.55,3350.5,3348.8,0.02985464]
[1732245654505,0.55,3350.7,3348.8,0.02985464]
[1732245654790,3.0,3350.6,3348.8,0.02985464]
[1732245655143,0.55,3350.3,3348.8,0.2976]
[1732245655434,3.55,3350.3,3348.8,0.2976]
[1732245655929,3.55,3350.3,3348.5,0.02985774]
[1732245655930,2.98499,3350.1,3348.5,0.02985774]
[1732245656099,0.55,3350.0,3348.2,0.02985809]
[1732245656487,3.0,3349.9,3348.2,0.02985809]
[1732245656934,0.55,3350.0,3348.2,0.02985809]
[1732245657097,5.98535,3349.7,3348.2,0.02985809]
[1732245657426,5.9854,3349.7,3347.5,0.03985958]
[1732245657792,2.98553,3349.5,3347.5,0.03985958]
[1732245658331,2.98553,3349.5,3347.0,0.01]
[1732245658332,3.0,3349.0,3347.0,0.02985961]
[1732245658492,3.0,3349.0,3347.2,0.2976]
[1732245658691,5.98597,3349.0,3347.4,0.2976]
[1732245658923,2.98633,3348.6,3347.6,0.2976]
[1732245659235,0.55,3348.5,3347.5,0.1847]
[1732245659419,1.3614,3348.5,3347.5,0.1847]
[1732245659792,2.98656,3348.4,3347.5,0.1847]
[1732245659990,4.34782,3348.5,3347.5,0.1847]
[1732245660229,2.98668,3348.2,3347.5,0.1847]
[1732245660433,0.55,3348.2,3347.5,0.1847]
[1732245660735,2.98684,3348.1,3347.5,0.1847]
[1732245661026,2.98684,3348.1,3347.2,0.1847]
[1732245661244,3.53675,3348.2,3347.2,0.1847]
[1732245661391,2.98678,3348.1,3347.2,0.1847]
[1732245661618,2.98665,3348.3,3347.2,0.1847]
[1732245661619,2.98662,3348.3,3347.2,0.1847]
[1732245661820,3.53668,3348.2,3347.2,0.1847]
[1732245662016,2.98595,3349.1,3347.2,0.1847]
[1732245662017,2.98597,3349.0,3347.2,0.1847]
[1732245662247,0.8114,3349.7,3347.3,0.21456883]
[1732245662433,2.98581,3349.2,3347.4,0.1847]
[1732245662640,2.98562,3349.4,3347.6,0.1847]
[1732245662840,2.98562,3349.4,3347.8,0.1847]
[1732245663159,2.98562,3349.4,3347.3,0.40511147]
[1732245663160,2.98577,3349.3,3348.0,0.1847]
[1732245663522,0.55,3349.6,3348.0,0.1847]
[1732245663720,0.55,3349.4,3348.0,0.1847]
[1732245664153,3.55,3349.4,3348.2,0.1847]
[1732245664361,3.55,3349.4,3348.3,3.30369]
[1732245664520,3.55,3349.4,3348.3,2.9866]
[1732245664722,0.8114,3349.7,3348.4,0.1847]
[1732245664976,2.98532,3349.8,3348.6,0.1847]
[1732245665168,4.52624607,3349.5,3348.6,0.1847]
[1732245665372,4.52624607,3350.7,3348.8,0.1847]
[1732245665543,2.98489,3350.2,3348.8,0.1847]
[1732245665871,4.52624607,3349.9,3348.9,2.9861]
[1732245666079,2.98525,3349.8,3348.9,2.9861]
[1732245666591,4.52624607,3349.9,3348.9,2.9861]
[1732245668345,2.98525,3349.8,3348.9,2.9861]
[1732245668865,2.98545,3349.6,3348.9,2.9861]
[1732245669172,2.98568,3349.4,3348.9,2.9861]
[1732245669482,2.98596,3349.0,3348.9,2.9861]
[1732245669763,3.55,3349.0,3348.9,2.9861]
[1732245670070,3.53596,3349.0,3348.9,2.9861]
[1732245670283,6.53596,3349.0,3348.9,2.9861]
[1732245672667,7.48146,3349.0,3348.9,0.87231602]
[1732245672967,7.48146,3349.0,3348.9,0.61409985]
[1732245673173,7.48146,3349.0,3347.5,0.1847]
[1732245673334,0.9455,3348.2,3347.5,0.1847]
[1732245673535,0.9455,3348.2,3347.1,0.1847]
[1732245673536,2.98729,3347.6,3347.1,0.1847]
[1732245674063,2.98731,3347.5,3347.1,0.1847]
[1732245674267,6.53714,3347.7,3347.1,0.1847]
[1732245674448,2.98731,3347.5,3347.1,0.1847]
[1732245674636,3.55,3347.8,3347.1,0.1847]
[1732245674969,0.01,3349.3,3347.1,0.1847]
[1732245674970,3.0,3348.6,3347.1,0.1847]
[1732245675177,3.0,3348.7,3347.1,0.1847]
[1732245675332,5.98704,3347.8,3347.1,0.1847]
[1732245675535,2.98742,3347.4,3347.1,0.1847]
[1732245675839,2.98742,3347.4,3347.0,0.875]
[1732245676368,6.53766,3347.1,3347.0,0.875]
[1732245677278,7.48316,3347.1,3347.0,0.875]
[1732245677855,2.98835,3346.4,3345.8,0.1847]
[1732245678079,0.55,3346.3,3345.8,0.1847]
[1732245678277,0.55,3346.4,3345.8,0.1847]
[1732245678486,3.55,3346.8,3345.4,0.1847]
[1732245678654,0.55,3346.1,3345.4,0.1847]
[1732245678977,0.55,3345.9,3344.8,0.1847]
[1732245679141,3.53875,3345.9,3344.8,0.1847]
[1732245679541,0.55,3345.8,3344.8,0.1847]
[1732245679735,2.98904,3345.6,3344.8,0.1847]
[1732245680062,3.55,3345.8,3344.8,0.1847]
[1732245680063,2.98891,3345.7,3344.8,0.1847]
[1732245680240,3.0,3345.8,3344.8,0.1847]
[1732245680577,2.98891,3345.7,3344.8,0.1847]
[1732245680876,2.98936,3345.2,3344.8,0.1847]
[1732245681184,2.98936,3345.2,3344.7,0.1501363]
[1732245681185,2.98956,3345.0,3344.7,0.1501363]
[1732245681474,2.98952,3345.1,3344.7,0.1501363]
[1732245681681,3.0,3345.0,3344.7,0.1501363]
[1732245681877,5.98957,3345.0,3344.7,0.1501363]
[1732245682282,3.53971,3344.8,3344.7,0.1501363]
[1732245682788,3.55,3344.8,3344.7,0.1501363]
[1732245682956,6.53971,3344.8,3344.7,0.1501363]
[1732245683463,7.42041,3344.8,3344.7,0.1501363]
[1732245684196,7.41248778,3344.8,3344.7,0.1501363]
[1732245684407,2.99041,3344.1,3343.7,0.1847]
[1732245684587,7.41248778,3344.8,3341.8,0.1847]
[1732245684588,2.99044,3344.0,3341.8,0.1847]
[1732245684789,2.99044,3344.0,3342.1,0.1847]
[1732245685104,5.99025,3344.2,3342.3,0.1847]
[1732245685105,0.8807,3343.6,3342.3,0.1847]
[1732245685308,4.52624607,3343.2,3342.3,0.1847]
[1732245685600,3.8807,3343.6,3342.3,0.1847]
[1732245685601,2.99089,3343.5,3342.3,0.1847]
[1732245685801,2.99041,3344.1,3342.3,0.1847]
[1732245685802,0.8807,3344.2,3342.3,0.1847]
[1732245686008,3.0,3344.0,3342.3,0.1847]
[1732245686162,3.0,3344.0,3342.2,0.37569043]
[1732245686163,3.54054,3343.9,3342.4,0.21461424]
[1732245686359,0.55,3343.5,3342.4,0.1847]
[1732245686559,3.0,3343.5,3342.4,0.1847]
[1732245686798,3.55,3343.5,3342.4,0.1847]
[1732245686992,0.55,3343.3,3342.4,0.1847]
[1732245687366,6.54107,3343.3,3342.4,0.1847]
[1732245687803,0.55,3343.3,3342.4,0.1847]
[1732245688493,0.55,3343.0,3342.4,0.1847]
[1732245688661,0.55,3343.1,3342.4,0.1847]
[1732245689363,3.55,3343.1,3342.4,0.1847]
[1732245689567,3.54126,3343.1,3342.4,0.1847]
[1732245689789,3.55,3343.2,3341.8,0.2157]
[1732245690415,16.80624607,3343.2,3341.8,0.2157]
[1732245690576,6.54162,3342.7,3341.8,0.2157]
[1732245690782,3.0,3342.9,3341.8,0.2157]
[1732245691012,2.99141,3343.0,3341.8,0.2157]
[1732245691013,3.0,3343.1,3341.8,0.2157]
[1732245691181,3.55,3343.3,3341.8,0.2157]
[1732245691369,3.55,3343.0,3341.8,0.2157]
[1732245691716,2.99185,3342.5,3341.4,0.3658363]
[1732245691881,3.55,3342.4,3341.4,0.3658363]
[1732245692197,6.54188,3342.4,3341.4,0.3658363]
[1732245692366,0.55,3342.5,3341.4,0.3658363]
[1732245692765,2.99176,3342.6,3341.4,0.3658363]
[1732245693070,0.55,3342.5,3341.4,0.3658363]
[1732245693269,3.55,3342.5,3341.4,0.3658363]
[1732245693505,3.55,3342.3,3341.4,0.3658363]
[1732245693707,0.55,3342.3,3341.4,0.3658363]
[1732245693871,0.55,3342.5,3341.4,0.3658363]
[1732245694079,0.55,3342.5,3341.5,0.2976]
[1732245694275,3.0,3342.4,3341.5,0.2976]
[1732245694484,0.55,3342.5,3341.5,0.2976]
[1732245694817,0.55,3342.8,3341.5,0.2976]
[1732245695105,3.0,3343.0,3341.5,0.2976]
[1732245695306,3.0,3343.1,3341.6,0.2157]
[1732245695467,3.33841451,3343.3,3341.6,0.2456226]
[1732245695665,2.99096,3343.4,3341.6,0.24562261]
[1732245695911,2.99125,3343.1,3341.6,0.2157]
[1732245696208,4.52624607,3342.7,3341.6,0.2157]
[1732245696367,3.0,3342.2,3341.6,0.2157]
[1732245696801,0.55,3342.3,3341.6,0.2157]
[1732245696973,0.55,3342.5,3341.6,0.2157]
[1732245697316,0.55,3342.7,3341.6,0.2157]
[1732245697868,3.55,3342.7,3341.6,0.2157]
[1732245698408,8.07624607,3342.7,3341.6,0.2157]
[1732245699317,0.55,3342.5,3341.6,0.2157]
[1732245699523,6.54181,3342.5,3341.6,0.2157]
[1732245699974,6.54181,3342.5,3341.4,0.1501363]
[1732245699975,3.55,3342.3,3341.4,0.1501363]
[1732245700170,6.54199,3342.3,3341.4,0.1501363]
[1732245700374,0.55,3342.3,3341.4,0.1501363]
[1732245700574,2.99224,3342.0,3341.4,0.1501363]
[1732245700810,0.55,3341.8,3341.4,0.1501363]
[1732245700974,3.0,3342.3,3341.4,0.1501363]
[1732245701185,0.55,3342.4,3341.4,0.1501363]
[1732245701377,3.55,3342.4,3341.4,0.1501363]
[1732245701811,0.55,3342.5,3341.5,0.2157]
[1732245702108,3.0,3342.8,3341.5,0.2157]
[1732245702609,3.0,3342.9,3341.5,0.2157]
[1732245702917,5.99124,3343.1,3341.5,0.2157]
[1732245703087,0.35627283,3343.2,3341.5,0.2157]
[1732245703088,0.55,3342.8,3341.5,0.2157]
[1732245703673,3.54155,3342.8,3341.5,0.2157]
[1732245703870,0.55,3342.6,3341.5,0.2157]
[1732245704090,0.55,3342.8,3341.6,0.2976]
[1732245704309,5.40674607,3343.8,3342.2,0.2976]
[1732245704524,0.01,3344.7,3342.2,0.2976]
[1732245704525,0.8805,3343.2,3342.2,0.2976]
[1732245704677,2.99156,3342.8,3342.2,0.2976]
[1732245705199,4.52624607,3343.8,3342.4,0.2976]
[1732245705510,2.99064,3343.8,3342.6,0.2976]
[1732245706272,2.99064,3343.8,3342.8,0.2976]